{"text_format":"1","workbook":"xlsx","n_sheets":3,"sheets":["Лист1","Лист2","Лист3"],"not_rendered":{"charts":0,"images":0,"macros":1,"external_links":0,"defined_names":0,"comments":0,"pivot_tables":0},"unopened":[],"bounds":{"document_bytes":16777216,"sheet_cells":100000,"rows_first":2000,"rows_last":500,"rows_between":2000,"halvings":0,"cell_chars":16384,"cell_head_chars":4096},"cells_cut":0,"cells_raw":0,"read":"whole","date_system":"1900"}

{"sheet":"Лист1","index":0,"n_rows":33,"n_cols":14,"rows_kept":33,"cut":false,"hidden":false,"merged":[]}
["Убыл","Прибыл",null,null,"цифры","кол-во"]
[7455575,7455575,{"$f":"VLOOKUP(B2,$G$16:$J$110,3,FALSE)","v":{"$error":"#N/A"}},{"$f":"IF(A2>0,1,0)","v":1},{"$f":"IF(B2>0,1,0)","v":1},{"$f":"SUM(E2:E1000)-SUM(D2:D1000)","v":4},null,null,null,null,null,{"$f":"VLOOKUP(A2,$G$5:$N$110,8,FALSE)","v":{"$error":"#N/A"}},null,"убыл"]
[7465543,7465543,{"$error":"#N/A"},{"$f":"IF(A3>0,1,0)","v":1},{"$f":"IF(B3>0,1,0)","v":1},null,null,null,null,null,null,{"$error":"#N/A"},null,"убыл"]
[7453079,7476067,{"$error":"#N/A"},1,1,null,null,null,null,null,null,{"$error":"#N/A"},null,"убыл"]
[7469991,7469991,{"$error":"#N/A"},1,1,null,null,null,null,null,null,{"$error":"#N/A"},null,"убыл"]
[7477213,7477213,{"$error":"#N/A"},1,1,null,null,null,null,null,null,{"$error":"#N/A"},null,"убыл"]
[null,7464884,{"$error":"#N/A"},0,1,null,null,null,null,null,null,{"$error":"#N/A"},null,"убыл"]
[null,7472719,{"$error":"#N/A"},0,1,null,null,null,null,null,null,{"$error":"#N/A"},null,"убыл"]
[null,7456049,{"$error":"#N/A"},0,1,null,null,null,null,null,null,{"$error":"#N/A"},null,"убыл"]
[null,7476067,{"$error":"#N/A"},0,1,null,null,null,null,null,null,{"$error":"#N/A"},null,"убыл"]
[null,null,{"$error":"#N/A"},0,0,null,null,null,null,null,null,{"$error":"#N/A"},null,"убыл"]
[null,null,{"$error":"#N/A"},0,0,null,null,null,null,null,null,{"$error":"#N/A"},null,"убыл"]
[null,null,{"$error":"#N/A"},0,0,null,null,null,null,null,null,{"$error":"#N/A"},null,"убыл"]
[null,null,{"$error":"#N/A"},0,0,null,null,null,null,null,null,{"$error":"#N/A"},null,"убыл"]
[null,null,{"$error":"#N/A"},0,0,null,null,null,null,null,null,{"$error":"#N/A"},null,"убыл"]
[null,null,{"$error":"#N/A"},0,0,null,null,null,null,null,null,{"$error":"#N/A"},null,"убыл"]
[null,null,{"$error":"#N/A"},0,0,null,null,null,null,null,null,{"$error":"#N/A"},null,"убыл"]
[null,null,{"$error":"#N/A"},0,0,null,null,null,null,null,null,{"$error":"#N/A"},null,"убыл"]
[null,null,{"$error":"#N/A"},0,0,null,null,null,null,null,null,{"$error":"#N/A"},null,"убыл"]
[null,null,{"$error":"#N/A"},0,0,null,null,null,null,null,null,{"$error":"#N/A"},null,"убыл"]
[null,null,{"$error":"#N/A"},0,0,null,null,null,null,null,null,{"$error":"#N/A"},null,"убыл"]
[null,null,{"$error":"#N/A"},0,0,null,null,null,null,null,null,{"$error":"#N/A"},null,"убыл"]
[null,null,{"$error":"#N/A"},0,0,null,null,null,null,null,null,{"$error":"#N/A"},null,"убыл"]
[null,null,{"$error":"#N/A"},0,0,null,null,null,null,null,null,{"$error":"#N/A"},null,"убыл"]
[null,null,{"$error":"#N/A"},0,0,null,null,null,null,null,null,{"$error":"#N/A"},null,"убыл"]
[null,null,{"$error":"#N/A"},0,0,null,null,null,null,null,null,{"$error":"#N/A"},null,"убыл"]
[null,null,{"$error":"#N/A"},0,null,null,null,null,null,null,null,{"$error":"#N/A"},null,"убыл"]
[null,null,{"$error":"#N/A"},0,null,null,null,null,null,null,null,{"$error":"#N/A"},null,"убыл"]
[null,null,{"$error":"#N/A"},0,null,null,null,null,null,null,null,{"$error":"#N/A"},null,"убыл"]
[null,null,null,null,null,null,null,null,null,null,null,{"$error":"#N/A"},null,"убыл"]
[null,null,null,null,null,null,null,null,null,null,null,{"$error":"#N/A"},null,"убыл"]
[null,null,null,null,null,null,null,null,null,null,null,{"$error":"#N/A"},null,"убыл"]
[null,null,null,null,null,null,null,null,null,null,null,{"$error":"#N/A"},null,"убыл"]

{"sheet":"Лист2","index":1,"n_rows":100,"n_cols":62,"rows_kept":100,"cut":false,"hidden":false,"merged":[]}
["Код","Дата, время","Фамилия","Количество сотрудников"]
[7455575,"2018-12-07T22:57:14",{"$f":"VLOOKUP(A2,$BG$5:$BJ$110,3,FALSE)","v":"иванов"}]
[7455575,"2018-12-07T22:57:15",{"$f":"VLOOKUP(A3,$BG$5:$BJ$110,3,FALSE)","v":"иванов"}]
[7455575,"2018-12-07T22:57:16","иванов",null,null,null,null,null,null,null,null,null,null,null,null,null,null,null,null,null,null,null,null,null,null,null,null,null,null,null,null,null,null,null,null,null,null,null,null,null,null,null,null,null,null,null,null,null,null,null,null,null,null,null,null,null,null,null,"наименование","стоимость ","инвентарный","кабинет"]
[7455575,"2018-12-07T22:57:17","иванов",null,null,null,null,null,null,null,null,null,null,null,null,null,null,null,null,null,null,null,null,null,null,null,null,null,null,null,null,null,null,null,null,null,null,null,null,null,null,null,null,null,null,null,null,null,null,null,null,null,null,null,null,null,null,null,7455575,10,"иванов",99]
[7455575,"2018-12-07T22:57:17","иванов",null,null,null,null,null,null,null,null,null,null,null,null,null,null,null,null,null,null,null,null,null,null,null,null,null,null,null,null,null,null,null,null,null,null,null,null,null,null,null,null,null,null,null,null,null,null,null,null,null,null,null,null,null,null,null,7456049,20,"петров",88]
[7455575,"2018-12-07T22:57:18","иванов",null,null,null,null,null,null,null,null,null,null,null,null,null,null,null,null,null,null,null,null,null,null,null,null,null,null,null,null,null,null,null,null,null,null,null,null,null,null,null,null,null,null,null,null,null,null,null,null,null,null,null,null,null,null,null,7469991,30,"сидоров",77]
[7455575,"2018-12-07T22:57:18","иванов",null,null,null,null,null,null,null,null,null,null,null,null,null,null,null,null,null,null,null,null,null,null,null,null,null,null,null,null,null,null,null,null,null,null,null,null,null,null,null,null,null,null,null,null,null,null,null,null,null,null,null,null,null,null,null,7453079,40,"Хлыбов",66]
[7455575,"2018-12-07T22:57:19","иванов",null,null,null,null,null,null,null,null,null,null,null,null,null,null,null,null,null,null,null,null,null,null,null,null,null,null,null,null,null,null,null,null,null,null,null,null,null,null,null,null,null,null,null,null,null,null,null,null,null,null,null,null,null,null,null,7472719,50,"вася",55]
[7455575,"2018-12-07T22:57:20","иванов",null,null,null,null,null,null,null,null,null,null,null,null,null,null,null,null,null,null,null,null,null,null,null,null,null,null,null,null,null,null,null,null,null,null,null,null,null,null,null,null,null,null,null,null,null,null,null,null,null,null,null,null,null,null,null,7476067,60,"паша",44]
[7477213,"2018-12-07T22:57:24","rtert"]
[7469991,"2018-12-07T22:57:28","сидоров"]
[null,"2018-12-07T18:15:26",{"$error":"#N/A"},null,null,null,null,null,null,null,null,null,null,null,null,null,null,null,null,null,null,null,null,null,null,null,null,null,null,null,null,null,null,null,null,null,null,null,null,null,null,null,null,null,null,null,null,null,null,null,null,null,null,null,null,null,null,null,7464884,null,"dsdg"]
[null,"2018-12-07T18:15:26",{"$error":"#N/A"},null,null,null,null,null,null,null,null,null,null,null,null,null,null,null,null,null,null,null,null,null,null,null,null,null,null,null,null,null,null,null,null,null,null,null,null,null,null,null,null,null,null,null,null,null,null,null,null,null,null,null,null,null,null,null,7477213,null,"rtert"]
[null,"2018-12-07T18:15:26",{"$error":"#N/A"},null,null,null,null,null,null,null,null,null,null,null,null,null,null,null,null,null,null,null,null,null,null,null,null,null,null,null,null,null,null,null,null,null,null,null,null,null,null,null,null,null,null,null,null,null,null,null,null,null,null,null,null,null,null,null,7465543,null,"gtnhjdbx"]
[null,"2018-12-07T18:15:26",{"$error":"#N/A"}]
[null,"2018-12-07T18:15:26",{"$error":"#N/A"}]
[null,"2018-12-07T18:15:26",{"$error":"#N/A"}]
[null,"2018-12-07T18:15:27",{"$error":"#N/A"}]
[null,"2018-12-07T18:15:27",{"$error":"#N/A"}]
[null,"2018-12-07T18:15:27",{"$error":"#N/A"}]
[null,"2018-12-07T18:15:27",{"$error":"#N/A"}]
[null,"2018-12-07T18:15:27",{"$error":"#N/A"}]
[null,"2018-12-07T18:15:27",{"$error":"#N/A"}]
[null,"2018-12-07T18:15:27",{"$error":"#N/A"}]
[null,"2018-12-07T18:15:27",{"$error":"#N/A"}]
[null,"2018-12-07T18:15:27",{"$error":"#N/A"}]
[null,"2018-12-07T18:15:27",{"$error":"#N/A"}]
[null,"2018-12-07T18:15:27",{"$error":"#N/A"}]
[null,"2018-12-07T18:15:27",{"$error":"#N/A"}]
[null,"2018-12-07T18:15:27",{"$error":"#N/A"}]
[null,"2018-12-07T18:15:27",{"$error":"#N/A"}]
[null,"2018-12-07T18:15:27",{"$error":"#N/A"}]
[null,"2018-12-07T18:15:27",{"$error":"#N/A"}]
[null,"2018-12-07T18:15:27",{"$error":"#N/A"}]
[null,"2018-12-07T18:15:27",{"$error":"#N/A"}]
[null,"2018-12-07T18:15:27"]
[null,"2018-12-07T18:15:27"]
[null,"2018-12-07T18:15:27"]
[null,"2018-12-07T18:15:27"]
[null,"2018-12-07T18:15:27"]
[null,"2018-12-07T18:15:27"]
[null,"2018-12-07T18:15:27"]
[null,"2018-12-07T18:15:27"]
[null,"2018-12-07T18:15:27"]
[null,"2018-12-07T18:15:27"]
[null,"2018-12-07T18:15:27"]
[null,"2018-12-07T18:15:27"]
[null,"2018-12-07T18:15:27"]
[null,"2018-12-07T18:15:27"]
[null,"2018-12-07T18:15:27"]
[null,"2018-12-07T18:15:27"]
[null,"2018-12-07T18:15:27"]
[null,"2018-12-07T18:15:27"]
[null,"2018-12-07T18:15:27"]
[null,"2018-12-07T18:15:27"]
[null,"2018-12-07T18:15:27"]
[null,"2018-12-07T18:15:27"]
[null,"2018-12-07T18:15:27"]
[null,"2018-12-07T18:15:27"]
[null,"2018-12-07T18:15:27"]
[null,"2018-12-07T18:15:27"]
[null,"2018-12-07T18:15:27"]
[null,"2018-12-07T18:15:27"]
[null,"2018-12-07T18:15:27"]
[null,"2018-12-07T18:15:27"]
[null,"2018-12-07T18:15:27"]
[null,"2018-12-07T18:15:27"]
[null,"2018-12-07T18:15:27"]
[null,"2018-12-07T18:15:27"]
[null,"2018-12-07T18:15:27"]
[null,"2018-12-07T18:15:27"]
[null,"2018-12-07T18:15:27"]
[null,"2018-12-07T18:15:27"]
[null,"2018-12-07T18:15:27"]
[null,"2018-12-07T18:15:27"]
[null,"2018-12-07T18:15:27"]
[null,"2018-12-07T18:15:27"]
[null,"2018-12-07T18:15:28"]
[null,"2018-12-07T18:15:28"]
[null,"2018-12-07T18:15:28"]
[null,"2018-12-07T18:15:28"]
[null,"2018-12-07T18:15:28"]
[null,"2018-12-07T18:15:28"]
[null,"2018-12-07T18:15:28"]
[null,"2018-12-07T18:15:28"]
[null,"2018-12-07T18:15:28"]
[null,"2018-12-07T18:15:28"]
[null,"2018-12-07T18:15:28"]
[null,"2018-12-07T18:15:28"]
[null,"2018-12-07T18:15:28"]
[null,"2018-12-07T18:15:28"]
[null,"2018-12-07T18:15:28"]
[null,"2018-12-07T18:15:28"]
[null,"2018-12-07T18:15:28"]
[null,"2018-12-07T18:15:28"]
[null,"2018-12-07T18:15:28"]
[null,"2018-12-07T18:15:28"]
[null,"2018-12-07T18:15:28"]
[null,"2018-12-07T18:15:28"]

{"sheet":"Лист3","index":2,"n_rows":0,"n_cols":0,"rows_kept":0,"cut":false,"hidden":false,"merged":[]}